bitfinex/quotes_ETHUSD_20250518
["timestamp","ask_amount","ask_price","bid_price","bid_amount"]
[1747552559367,4.54632955,2502.3,2501.9,0.38129599]
[1747552559570,4.54632955,2502.3,2501.8,3.99705562]
[1747552559869,4.54632955,2502.3,2501.7,4.75620469]
[1747552560244,3.9964893,2502.2,2501.8,0.22332146]
[1747552560969,0.55,2502.3,2501.8,0.22332146]
[1747552561267,4.54638922,2502.3,2501.8,3.99711235]
[1747552561569,0.8317,2502.6,2501.9,4.75198639]
[1747552561570,11.51717776,2502.4,2501.9,4.75198639]
[1747552562160,3.99638528,2502.3,2501.9,0.7551]
[1747552562470,11.51724086,2502.4,2501.9,0.7551]
[1747552562663,3.99634868,2502.3,2501.9,0.7551]
[1747552563171,4.82198309,2502.2,2501.6,0.7926]
[1747552563376,3.99684138,2502.0,2501.6,0.7926]
[1747552563752,3.99684138,2502.0,2501.7,0.22335419]
[1747552564148,4.82212513,2502.2,2501.8,0.38120462]
[1747552564380,3.99662513,2502.2,2501.8,0.38120462]
[1747552565973,3.99662513,2502.2,2501.9,0.38120462]
[1747552566984,3.99669103,2502.1,2501.9,0.38120462]
[1747552567345,3.99650597,2502.2,2501.9,0.38120462]
[1747552567755,3.99650597,2502.2,2501.8,0.38120462]
[1747552568480,3.99664495,2502.1,2501.9,0.22376515]
[1747552568978,3.99664495,2502.1,2502.0,0.38120462]
[1747552569678,3.99592392,2502.6,2502.0,1.13660462]
[1747552569895,7.523,2502.7,2502.1,3.99653716]
[1747552570057,7.523,2502.7,2502.2,4.75184217]
[1747552570058,13.55459246,2502.7,2502.2,4.75184217]
[1747552570267,7.523,2502.7,2502.3,3.99623943]
[1747552570497,11.51871349,2502.7,2502.2,4.75185839]
[1747552570800,11.51871349,2502.7,2502.4,0.60496977]
[1747552571278,7.523,2502.7,2502.4,0.60496977]
[1747552571641,11.51869244,2502.7,2502.5,0.22376515]
[1747552571840,3.99569244,2502.7,2502.5,0.22376515]
[1747552572070,12.01270132,2502.8,2502.5,0.22376515]
[1747552572257,3.99560953,2502.8,2502.5,0.22376515]
[1747552572478,3.99560953,2502.8,2502.6,0.38120462]
[1747552572684,6.43582956,2502.8,2502.6,0.38120462]
[1747552572871,3.99568466,2502.7,2502.6,0.38120462]
[1747552573377,6.43582426,2502.8,2502.6,0.38120462]
[1747552573584,6.43582426,2502.8,2502.6,0.60530318]
[1747552573744,3.99560423,2502.8,2502.6,0.60530318]
[1747552573951,7.519,2502.9,2502.6,0.60530318]
[1747552574168,7.519,2502.9,2502.7,0.22409856]
[1747552574482,7.519,2502.9,2502.7,0.60530318]
[1747552574683,11.51440745,2502.9,2502.7,0.60530318]
[1747552574850,7.519,2502.9,2502.7,0.38120462]
[1747552575477,12.81872501,2502.8,2502.7,0.38120462]
[1747552575675,20.88672501,2502.8,2502.7,0.38120462]
[1747552575860,5.35444432,2502.6,2502.5,0.47717836]
[1747552576070,14.76340876,2502.6,2502.5,0.47717836]
[1747552576956,13.35444432,2502.6,2502.5,0.47717836]
[1747552577156,31.93497625,2502.6,2502.5,0.47717836]
[1747552578689,3.99669742,2502.1,2501.8,0.38259985]
[1747552578859,19.03569742,2502.1,2501.8,0.38259985]
[1747552579190,19.03569742,2502.1,2501.9,0.2241299]
[1747552579691,3.99640549,2502.3,2502.0,0.832]
[1747552579896,0.55,2502.2,2502.0,0.832]
[1747552580070,0.55,2502.2,2502.1,0.38259985]
[1747552580269,4.54648309,2502.2,2502.1,0.38259985]
[1747552581586,3.99703137,2501.9,2501.7,0.47717836]
[1747552581989,3.99686774,2502.0,2501.7,0.47717836]
[1747552582309,3.99686774,2502.0,2501.8,0.22412113]
[1747552582678,3.99671857,2502.1,2501.8,0.22412113]
[1747552583203,11.51671857,2502.1,2501.9,0.60661867]
[1747552583911,11.51671857,2502.1,2501.9,0.38249754]
[1747552584311,8.8776,2502.2,2501.9,0.38249754]
[1747552584312,4.54656136,2502.2,2501.9,0.38249754]
[1747552584506,8.07,2502.2,2501.9,0.38249754]
[1747552584811,4.54666326,2502.1,2502.0,0.38249754]
[1747552585389,5.31146326,2502.1,2502.0,0.38249754]
[1747552586116,3.99692142,2502.0,2501.6,0.47717836]
[1747552586816,0.55,2502.1,2501.8,0.8079]
[1747552586978,7.52,2502.0,2501.8,0.8079]
[1747552587179,11.51690868,2502.0,2501.9,0.38245157]
[1747552587385,12.06690868,2502.0,2501.9,0.38245157]
[1747552587895,11.51690868,2502.0,2501.9,0.38245157]
[1747552588825,0.7648,2503.6,2503.1,3.99494404]
[1747552589028,0.97340236,2504.1,2503.2,1.90838006]
[1747552589248,0.7648,2504.1,2503.2,3.53657931]
[1747552589402,11.51361022,2504.0,2503.3,3.99469055]
[1747552589599,12.74171086,2503.9,2503.3,4.21832946]
[1747552589830,12.74171086,2503.9,2503.3,0.22363891]
[1747552589990,4.54393293,2503.8,2503.3,0.22363891]
[1747552590190,12.74165435,2503.9,2503.3,3.994639]
[1747552590587,7.52,2503.8,2503.3,3.994639]
[1747552591311,0.55,2503.7,2503.3,3.994639]
[1747552591511,7.52,2503.8,2503.3,3.994639]
[1747552591746,0.55,2503.7,2503.3,3.994639]
[1747552592556,0.55,2503.7,2503.4,3.99455068]
[1747552592717,0.55,2503.7,2503.3,3.99465586]
[1747552593216,3.99368704,2504.0,2503.4,4.74786316]
[1747552593546,7.519,2504.1,2503.5,3.99431581]
[1747552593713,7.519,2504.1,2503.7,3.99406804]
[1747552593914,15.164,2504.1,2503.7,3.99406804]
[1747552595154,7.519,2504.1,2503.7,3.99402529]
[1747552595318,7.518,2504.1,2503.6,3.99418593]
[1747552595516,7.518,2504.1,2503.7,3.9940665]
[1747552595969,3.99297989,2504.4,2503.8,3.9939255]
[1747552596140,19.15113987,2504.3,2503.8,0.7534]
[1747552596346,3.99353824,2504.1,2503.8,0.7534]
[1747552596661,15.158,2504.3,2503.8,0.7534]
[1747552596866,3.99333058,2504.2,2503.8,0.7534]
[1747552597066,19.15120898,2504.3,2503.8,0.7534]
[1747552597566,11.51130636,2504.2,2503.8,0.7534]
[1747552597741,7.518,2504.2,2503.8,0.7534]
[1747552598539,11.51132654,2504.2,2503.8,0.7534]
[1747552600286,7.518,2504.2,2503.8,0.7534]
[1747552600479,3.99354934,2504.1,2503.8,0.7534]
[1747552600636,3.99372552,2504.0,2503.5,0.7837]
[1747552600840,3.9937485,2504.0,2503.5,0.7837]
[1747552601771,3.9937485,2504.0,2503.5,4.77809649]
[1747552602880,3.99382373,2503.9,2503.5,0.7837]
[1747552603080,3.99392922,2503.8,2503.5,0.7837]
[1747552603579,4.6996801,2503.9,2503.5,0.7837]
[1747552603786,3.99384742,2503.9,2503.5,0.7837]
[1747552606501,4.54376971,2503.9,2503.5,0.7837]
[1747552607103,3.99404432,2503.8,2503.5,0.7837]
[1747552607400,4.54384963,2503.9,2503.5,0.7837]
[1747552607971,3.99414109,2503.7,2503.2,4.78973682]
[1747552608171,3.99394405,2503.8,2503.3,3.99469241]
[1747552608555,4.5437737,2503.9,2503.4,3.9945155]
[1747552608867,4.5437737,2503.9,2503.5,0.7949]
[1747552613872,0.55,2503.9,2503.5,0.7949]
[1747552614072,4.54386214,2503.9,2503.5,0.7949]
[1747552616697,4.54386214,2503.9,2503.5,4.78928505]
[1747552616698,0.55,2503.9,2503.5,4.78928505]
[1747552616912,4.54382132,2503.9,2503.5,0.7949]
[1747552617226,0.55,2503.9,2503.5,4.78929186]
[1747552617624,7.623,2504.2,2503.6,0.827]
[1747552617776,7.623,2504.2,2503.7,0.7769]
[1747552617985,0.8294,2504.8,2503.8,4.77082922]
[1747552618173,0.8294,2504.8,2503.9,3.99363545]
[1747552618174,3.99265351,2504.6,2503.9,3.99363545]
[1747552618394,3.99308193,2504.4,2503.9,3.99363545]
[1747552618696,3.99327146,2504.3,2503.8,0.99991386]
[1747552619012,3.99327146,2504.3,2503.9,0.22301386]
[1747552619684,4.54296595,2504.5,2504.0,0.22301386]
[1747552620210,3.99305977,2504.4,2504.1,0.7769]
[1747552620530,3.99313181,2504.3,2504.2,0.22301386]
[1747552620931,4.54288572,2504.5,2504.2,0.22301386]
[1747552621125,7.622,2504.5,2504.2,0.22301386]
[1747552621330,11.6148265,2504.5,2504.2,0.22301386]
[1747552621689,20.1647212,2504.6,2504.4,0.7769]
[1747552622035,0.55,2504.5,2504.4,0.7769]
[1747552622201,4.54281293,2504.5,2504.4,0.7769]
[1747552622613,4.54281293,2504.5,2504.3,0.38063667]
[1747552622788,3.99297236,2504.4,2504.3,0.38063667]
[1747552622990,4.54289315,2504.5,2504.3,0.38063667]
[1747552623190,3.99297236,2504.4,2504.3,0.38063667]
[1747552624130,4.54297236,2504.4,2504.3,0.38063667]
[1747552624529,6.91835236,2504.4,2504.3,0.38063667]
[1747552625096,3.99326607,2504.3,2504.1,0.38063667]
[1747552625696,3.99329127,2504.2,2504.1,0.38063667]
[1747552625909,3.99319847,2504.3,2504.1,0.60410952]
[1747552626309,3.99329127,2504.2,2504.1,0.60410952]
[1747552626514,3.99329127,2504.2,2504.1,0.38063667]
[1747552626713,4.74573349,2504.3,2503.7,1.42823782]
[1747552626714,3.99347475,2504.1,2503.8,0.47717836]
[1747552627309,0.55,2504.2,2503.8,0.47717836]
[1747552627512,0.55,2504.2,2503.9,0.22350655]
[1747552627702,3.99353245,2504.1,2503.9,0.22350655]
[1747552628029,3.99361022,2504.0,2503.9,0.22350655]
[1747552628413,3.99361022,2504.0,2503.8,0.47717836]
[1747552628598,3.99361022,2504.0,2503.9,0.38147792]
[1747552631199,4.54361022,2504.0,2503.9,0.38147792]
[1747552631394,6.91741697,2504.0,2503.9,0.38147792]
[1747552631740,6.91741697,2504.0,2503.5,1.30627836]
[1747552631741,3.99377504,2503.9,2503.5,1.30627836]
[1747552631926,0.55,2504.0,2503.5,5.30066406]
[1747552632122,4.54364497,2504.0,2503.5,5.30066406]
[1747552632927,4.54364497,2504.0,2503.6,0.22336802]
[1747552633133,0.55,2504.0,2503.6,0.60456724]
[1747552633426,4.54361179,2504.0,2503.6,1.19510619]
[1747552634023,4.54361179,2504.0,2503.7,0.22336802]
[1747552634229,4.54361179,2504.0,2503.7,0.60456724]
[1747552634637,4.54361179,2504.0,2503.7,0.38119922]
[1747552635443,4.54361179,2504.0,2503.8,0.22338445]
[1747552636009,4.54361179,2504.0,2503.8,0.60458367]
[1747552636843,4.54361179,2504.0,2503.8,0.38119922]
[1747552636844,3.99376971,2503.9,2503.8,0.38119922]
[1747552637405,3.99376971,2503.9,2503.6,0.38119922]
[1747552637644,4.543686,2504.0,2503.6,0.38119922]
[1747552638009,4.543686,2504.0,2503.7,0.2235301]
[1747552638551,4.543686,2504.0,2503.8,0.38119922]
[1747552639711,4.543686,2504.0,2503.9,0.38119922]
[1747552640645,6.91750106,2504.0,2503.9,0.38119922]
[1747552641549,4.54384788,2503.9,2503.6,0.38119922]
[1747552642414,4.54368014,2504.0,2503.7,0.22359196]
[1747552643154,4.54368014,2504.0,2503.8,0.38119922]
[1747552643713,4.54376971,2503.9,2503.8,0.38119922]
[1747552644114,4.54376971,2503.9,2503.8,0.60480558]
[1747552645653,0.55,2503.9,2503.8,0.60480558]
[1747552647955,0.55,2504.0,2503.8,0.60480558]
[1747552648159,7.621,2504.1,2503.9,0.8307]
[1747552648357,7.621,2504.1,2504.0,0.22360636]
[1747552648726,7.621,2504.1,2504.0,0.60480558]
[1747552649948,12.01006973,2504.4,2504.0,0.60480558]
[1747552650147,12.12415666,2504.3,2504.0,0.60480558]
[1747552650646,12.12415666,2504.3,2504.1,0.22360636]
[1747552651558,12.12415666,2504.3,2504.2,0.38119922]
[1747552653030,12.12415666,2504.3,2504.0,0.38119922]
[1747552654227,12.12415666,2504.3,2504.1,0.22378463]
[1747552655104,12.12415666,2504.3,2504.2,0.38119922]
[1747552655860,4.54315666,2504.3,2504.2,0.38119922]
[1747552656083,12.12415666,2504.3,2504.2,0.38119922]
[1747552656665,8.131,2504.3,2504.2,0.38119922]
[1747552657946,8.131,2504.3,2504.2,0.60492888]
[1747552658545,12.12413181,2504.3,2504.2,0.60492888]
[1747552658750,17.02355882,2504.3,2504.2,0.60492888]
[1747552659446,16.19985882,2504.3,2504.2,0.38119922]
[1747552659770,12.12413181,2504.3,2503.8,3.99391126]
[1747552660386,12.12413181,2504.3,2503.9,0.22382265]
[1747552661092,12.12413181,2504.3,2504.0,0.22382265]
[1747552661265,12.12413181,2504.3,2504.0,0.60583439]
[1747552661665,12.12413181,2504.3,2504.0,0.38201174]
[1747552662585,8.131,2504.3,2504.0,0.38201174]
[1747552662789,8.131,2504.3,2504.1,1.05034815]
[1747552663090,8.131,2504.3,2504.1,1.43235989]
[1747552663765,8.131,2504.3,2504.2,0.22374815]
[1747552664357,8.131,2504.3,2504.2,0.60575989]
[1747552666208,12.12413181,2504.3,2504.2,0.60575989]
[1747552666769,12.12413181,2504.3,2504.2,0.38201174]
[1747552667190,8.131,2504.3,2504.2,0.38201174]
[1747552667702,12.12413181,2504.3,2504.2,0.38201174]
[1747552667995,8.131,2504.3,2504.2,0.38201174]
[1747552669102,7.581,2504.3,2504.2,0.38201174]
[1747552669899,7.581,2504.3,2504.2,0.60562597]
[1747552671667,7.581,2504.3,2504.2,0.38201174]
[1747552672478,15.58964517,2504.3,2504.2,0.38201174]
[1747552673503,0.55,2504.2,2503.8,0.8266]
[1747552674403,4.54331379,2504.2,2503.9,0.2238058]
[1747552675203,4.54331379,2504.2,2504.0,0.38197063]
[1747552675382,0.55,2504.2,2504.1,0.2238058]
[1747552676097,4.54329127,2504.2,2504.1,0.2238058]
[1747552676288,0.55,2504.2,2504.1,0.2238058]
[1747552676703,0.55,2504.2,2504.1,0.60577643]
[1747552685125,1.3601,2504.2,2504.1,0.60577643]
[1747552685726,0.55,2504.2,2504.1,0.60577643]
[1747552686712,4.54329127,2504.2,2504.1,0.60577643]
[1747552686930,0.55,2504.2,2504.1,0.60577643]
[1747552698415,7.581,2504.3,2504.1,0.60577643]
[1747552698804,7.581,2504.3,2504.1,4.59914686]
[1747552699009,7.581,2504.3,2504.1,5.18504239]
[1747552699208,7.581,2504.3,2504.2,0.2238058]
[1747552699710,7.581,2504.3,2504.2,0.60577643]
[1747552703843,0.55,2504.4,2504.3,0.752]
[1747552704013,0.55,2504.4,2504.3,1.35777643]
[1747552704711,0.55,2504.4,2504.3,0.60577643]
[1747552708695,4.54297236,2504.4,2504.3,0.60577643]
[1747552709227,4.54297236,2504.4,2504.3,0.38197063]
[1747552712465,6.99308097,2504.4,2504.3,0.38197063]
[1747552712648,1.3162,2504.4,2504.3,0.38197063]
[1747552712819,0.55,2504.4,2504.3,0.38197063]
[1747552713179,0.55,2504.7,2504.3,0.38197063]
[1747552713347,4.54251066,2504.7,2504.3,0.60569792]
[1747552713547,0.55,2504.5,2504.3,0.60569792]
[1747552714019,0.55,2504.5,2504.4,0.22372729]
[1747552714214,0.55,2504.5,2504.4,0.60569792]
[1747552714615,4.54281293,2504.5,2504.4,0.60569792]
[1747552715348,6.22304912,2504.5,2504.4,0.60569792]
[1747552715525,6.22304912,2504.5,2504.4,0.38197063]
[1747552716975,0.55,2504.2,2503.8,5.26099813]
[1747552717140,7.519,2504.1,2503.8,5.26099813]
[1747552717571,8.3457,2504.1,2503.8,0.47717836]
[1747552718079,8.3457,2504.1,2503.9,0.22371268]
[1747552718257,8.3457,2504.1,2503.9,0.60553512]
[1747552719379,8.8957,2504.1,2504.0,0.22371268]
[1747552719758,8.8957,2504.1,2504.0,0.60553512]
[1747552722569,14.92974097,2504.1,2504.0,0.60553512]
[1747552723072,14.92974097,2504.1,2504.0,0.38182244]
[1747552723273,0.55,2503.9,2503.5,1.26707836]
[1747552723648,4.54383337,2503.9,2503.5,1.26707836]
[1747552723866,0.55,2504.0,2503.6,0.22366447]
[1747552724073,4.54400732,2503.8,2503.6,0.22366447]
[1747552724477,3.99408874,2503.7,2503.6,0.22366447]
[1747552724851,3.99378397,2503.9,2503.6,0.60530522]
[1747552725179,0.55,2503.8,2503.6,0.60530522]
[1747552726082,0.55,2503.8,2503.6,0.38164075]
[1747552726599,3.99394097,2503.8,2503.6,0.38164075]
[1747552726759,4.54394097,2503.8,2503.7,0.38164075]
[1747552727761,14.70136243,2503.8,2503.7,0.38164075]
[1747552728099,0.55,2503.6,2503.3,0.47717836]
[1747552728391,0.55,2503.6,2503.3,1.23827836]
[1747552728392,7.518,2503.5,2503.3,1.23827836]
[1747552728961,7.518,2503.7,2503.3,5.23299091]
[1747552729184,8.068,2503.8,2503.4,0.52329909]
[1747552729387,4.54401854,2503.8,2503.5,0.22336729]
[1747552729807,24.44883342,2503.9,2503.5,0.22336729]
[1747552729987,4.54408874,2503.7,2503.6,0.38111679]
[1747552730180,5.29808874,2503.7,2503.6,0.38111679]
[1747552730376,17.07280387,2503.7,2503.6,0.38111679]
[1747552731078,3.99472696,2503.3,2503.2,0.47717836]
[1747552731278,11.51272696,2503.3,2503.2,0.47717836]
[1747552732707,3.99492352,2503.2,2503.0,0.7611]
[1747552734103,11.51274652,2503.3,2503.0,0.7611]
[1747552734805,11.51274652,2503.3,2503.1,0.38082687]
[1747552735315,7.518,2503.3,2503.1,0.38082687]
[1747552736397,7.518,2503.3,2503.0,0.7611]
[1747552737308,7.518,2503.3,2503.0,4.75630154]
[1747552737472,7.518,2503.3,2503.0,1.23675248]
[1747552737678,7.518,2503.3,2503.0,5.23187658]
[1747552737902,7.518,2503.3,2503.1,3.99503022]
[1747552738097,7.519,2503.5,2503.1,0.8253]
[1747552738311,7.519,2503.6,2503.3,3.99469002]
[1747552738609,7.519,2503.7,2503.4,0.8253]
[1747552738808,12.937,2503.9,2503.4,0.8253]
[1747552739017,7.519,2503.8,2503.4,0.8253]
[1747552739192,7.519,2503.8,2503.5,0.48199467]
[1747552740380,7.519,2503.8,2503.4,0.8253]
[1747552740584,7.519,2503.8,2503.5,0.22283539]
[1747552740998,7.519,2503.8,2503.6,0.38030227]
[1747552742237,11.51294956,2503.8,2503.6,0.38030227]
[1747552742733,11.51294956,2503.8,2503.4,0.8253]
[1747552742909,11.51294956,2503.8,2503.4,1.35501307]
[1747552743434,1.3101,2503.7,2503.2,0.47717836]
[1747552743599,3.99458927,2503.4,2503.2,0.47717836]
[1747552743805,3.99456738,2503.4,2503.3,0.38051974]
[1747552745832,3.99456738,2503.4,2502.9,5.43660137]
[1747552745833,0.55,2503.4,2502.9,0.805]
[1747552746000,3.99489517,2503.2,2503.0,0.22304858]
[1747552746338,4.54504614,2503.1,2503.0,0.22304858]
[1747552746934,3.99521402,2503.0,2502.8,0.47717836]
[1747552747438,4.54512194,2503.1,2502.8,0.47717836]
[1747552747805,3.99475995,2503.3,2502.8,0.47717836]
[1747552748003,12.01155526,2503.5,2503.0,3.9951867]
[1747552748311,8.069,2503.4,2502.9,4.78787949]
[1747552748637,12.06357728,2503.4,2503.0,0.222969]
[1747552748807,3.99488654,2503.2,2503.0,0.222969]
[1747552749008,3.99504614,2503.1,2503.0,0.222969]
[1747552749407,3.99504614,2503.1,2502.8,0.47717836]
[1747552749840,3.99504614,2503.1,2502.9,0.22305716]
[1747552750054,3.99520575,2503.0,2502.9,0.22305716]
[1747552750910,4.87284116,2503.1,2502.8,0.47717836]
[1747552751111,3.9951278,2503.1,2502.8,0.47717836]
[1747552752145,3.99507149,2503.1,2502.8,0.47717836]
[1747552752745,3.99507149,2503.1,2502.9,0.22315378]
[1747552753044,7.52,2503.4,2503.0,4.74950297]
[1747552753245,7.52,2503.4,2503.0,1.69882575]
[1747552753445,11.5145928,2503.4,2503.0,1.69882575]
[1747552753849,3.99478243,2503.3,2503.1,0.22315378]
[1747552754057,4.54488654,2503.2,2503.1,0.22315378]
[1747552754836,4.54488654,2503.2,2502.8,0.47717836]
[1747552755835,3.99514281,2503.1,2502.9,0.22301414]
[1747552756542,0.55,2503.2,2502.8,0.47717836]
[1747552756543,4.54502576,2503.2,2502.8,0.47717836]
[1747552756854,3.99506549,2503.1,2502.8,0.47717836]
[1747552759462,3.99530437,2503.0,2502.8,0.47717836]
[1747552759629,13.46678683,2502.9,2502.8,0.47717836]
[1747552761131,5.94878683,2502.9,2502.8,0.47717836]
[1747552761327,4.80378468,2503.1,2502.8,0.47717836]
[1747552761554,15.038,2503.0,2502.8,0.47717836]
[1747552761755,19.03324244,2503.0,2502.8,0.47717836]
[1747552762277,15.038,2503.0,2502.8,0.47717836]
[1747552762650,7.519,2503.0,2502.8,0.47717836]
[1747552762857,7.519,2503.0,2502.8,1.28887836]
[1747552763153,0.55,2503.2,2502.8,1.28887836]
[1747552763359,7.519,2503.1,2502.8,2.21691482]
[1747552763532,7.519,2503.1,2502.8,6.21239593]
[1747552763933,7.519,2503.1,2502.9,0.22281629]
[1747552764469,7.519,2503.1,2502.8,2.21691482]
[1747552764674,12.76908264,2503.5,2502.9,3.99523799]
[1747552764854,7.519,2503.3,2502.9,3.99523799]
[1747552765336,7.519,2503.3,2503.0,0.22282054]
[1747552766230,11.5137353,2503.3,2502.8,5.28431997]
[1747552766868,11.5137353,2503.3,2502.9,0.22278053]
[1747552767070,7.519,2503.3,2502.9,5.16830252]
[1747552767572,7.519,2503.3,2502.9,1.17305455]
[1747552767871,7.519,2503.3,2503.0,0.22278053]
[1747552768365,12.01157989,2503.5,2502.8,5.28432721]
[1747552768573,7.519,2503.3,2502.8,5.28432721]
[1747552768764,7.519,2503.3,2503.2,0.7621]
[1747552769168,4.75162253,2503.7,2503.2,4.75697377]
[1747552769378,7.519,2503.6,2503.3,3.99471586]
[1747552769541,15.038,2503.6,2503.3,3.99471586]
[1747552770480,15.038,2503.6,2503.2,4.7569106]
[1747552770678,15.038,2503.6,2503.2,5.63210442]
[1747552771193,15.038,2503.6,2503.3,0.22274201]
[1747552771399,3.99442468,2503.5,2503.3,0.22274201]
[1747552771888,3.99442468,2503.5,2503.2,0.7621]
[1747552771889,19.03230477,2503.6,2503.2,0.7621]
[1747552772383,15.038,2503.6,2503.2,0.7621]
[1747552772770,19.03227789,2503.6,2503.2,0.7621]
[1747552773586,4.54474804,2503.3,2502.9,0.827]
[1747552773791,0.55,2503.3,2502.9,4.8222574]
[1747552774086,4.81917922,2503.5,2503.0,3.99517368]
[1747552774253,0.55,2503.5,2503.1,3.99502133]
[1747552774458,0.55,2503.5,2503.0,3.99512245]
[1747552774655,0.55,2503.5,2503.1,4.21793009]
[1747552775052,4.81885736,2503.7,2503.2,3.99483324]
[1747552775250,15.036,2503.6,2503.3,1.04989471]
[1747552775994,15.036,2503.6,2503.3,0.827]
[1747552776361,15.036,2503.6,2503.4,0.38046427]
[1747552777052,7.518,2503.6,2503.4,0.38046427]
[1747552780896,7.518,2503.6,2503.5,0.38046427]
[1747552782779,7.518,2503.6,2503.5,0.60318385]
[1747552784210,12.937,2503.9,2503.5,5.1400437]
[1747552784372,7.517,2503.7,2503.6,3.99424828]
[1747552784567,20.454,2503.9,2503.7,4.76901414]
[1747552784772,20.454,2503.9,2503.8,3.99392922]
[1747552784981,20.454,2503.9,2503.7,4.76901349]
[1747552785274,12.937,2503.9,2503.8,3.99392922]
[1747552785594,7.517,2504.0,2503.9,3.99376971]
[1747552785965,7.517,2504.2,2503.8,0.60318385]
[1747552786290,7.517,2504.2,2503.9,3.99376971]
[1747552787306,7.517,2504.2,2504.0,0.38046427]
[1747552789278,7.517,2504.2,2503.8,3.99384566]
[1747552789581,7.517,2504.2,2503.8,5.01695738]
[1747552790176,2.8307132,2504.3,2503.8,1.02311172]
[1747552790403,7.516,2504.2,2503.8,5.01690915]
[1747552790712,7.516,2504.2,2503.9,0.379397]
[1747552791205,7.516,2504.2,2503.9,4.37316327]
[1747552791429,7.516,2504.2,2503.9,1.3959331]
[1747552791630,7.516,2504.2,2503.9,4.37311734]
[1747552792321,7.516,2504.2,2504.0,0.379397]
[1747552793634,7.515,2504.2,2503.7,0.775]
[1747552793835,7.515,2504.2,2503.9,3.99368031]
[1747552795152,7.515,2504.2,2504.0,3.99353292]
[1747552795344,7.515,2504.2,2503.9,3.99369027]
[1747552795504,7.515,2504.2,2504.0,0.79875682]
[1747552796815,7.515,2504.2,2503.7,0.775]
[1747552797337,7.515,2504.2,2503.8,3.99390892]
[1747552797660,7.515,2504.2,2503.9,0.37910869]
[1747552798652,7.515,2504.2,2503.9,4.37286088]
[1747552799028,7.515,2504.2,2504.0,0.37910869]
[1747552800861,7.515,2504.2,2503.9,0.37910869]
[1747552802472,3.6354132,2504.3,2503.9,4.37286141]
[1747552802703,7.515,2504.2,2503.9,0.37910869]
[1747552802887,3.99346735,2504.1,2503.9,0.37910869]
[1747552803549,3.99361022,2504.0,2503.9,0.37910869]
[1747552803864,3.99353816,2504.1,2503.7,0.37910869]
[1747552804159,3.99362749,2504.0,2503.7,0.37910869]
[1747552804330,3.99352714,2504.1,2503.7,0.37910869]
[1747552805964,7.515,2504.2,2503.7,0.37910869]
[1747552806131,1.11504132,2504.1,2503.7,0.37910869]
[1747552806332,3.99365413,2504.0,2503.7,0.37910869]
[1747552806660,3.99365413,2504.0,2503.8,0.6015581]
[1747552807067,3.99365413,2504.0,2503.8,0.37910869]
[1747552807668,3.99376971,2503.9,2503.8,0.37910869]
[1747552807873,3.99393106,2503.8,2503.6,0.37910869]
[1747552808166,3.99383984,2503.9,2503.6,0.37910869]
[1747552808701,3.99383984,2503.9,2503.7,0.22261159]
[1747552809378,3.99383984,2503.9,2503.8,0.37910869]
[1747552810296,4.54383984,2503.9,2503.8,0.37910869]
[1747552810500,5.47760725,2503.9,2503.8,0.37910869]
[1747552810678,1.48376741,2503.9,2503.6,0.37910869]
[1747552810876,0.55,2503.9,2503.6,0.37910869]
[1747552811200,0.55,2503.9,2503.7,0.22273527]
[1747552812003,0.55,2503.9,2503.8,0.37910869]
[1747552812300,4.54376971,2503.9,2503.8,0.37910869]
[1747552813304,0.55,2503.9,2503.5,0.37910869]
[1747552813462,15.7677132,2504.3,2503.6,4.77555366]
[1747552813463,20.31098231,2504.3,2503.6,4.77555366]
[1747552813664,7.515,2503.9,2503.6,4.77555366]
[1747552813899,7.515,2503.9,2503.7,0.22280315]
[1747552814502,7.515,2503.9,2503.8,0.22280315]
[1747552815003,7.515,2503.9,2503.8,0.60191184]
[1747552815199,3.99332694,2504.2,2503.8,0.60191184]
[1747552815406,7.513,2504.0,2503.8,0.60191184]
[1747552815707,3.99357525,2504.1,2503.8,0.60191184]
[1747552815866,7.513,2504.0,2503.8,0.37910869]
[1747552816066,3.99376971,2503.9,2503.8,0.37910869]
[1747552817005,3.99376971,2503.9,2503.7,0.37910869]
[1747552817682,3.99392922,2503.8,2503.7,0.37910869]
[1747552817884,4.54379421,2503.9,2503.7,0.37910869]
[1747552818296,0.55,2503.9,2503.8,0.37910869]
[1747552818502,8.062,2503.9,2503.8,0.37910869]
[1747552818800,7.513,2503.9,2503.8,0.37910869]
[1747552819599,7.513,2503.9,2503.8,0.60191631]
[1747552820773,7.513,2503.9,2503.8,0.37910869]
[1747552822267,7.513,2503.9,2503.8,0.60194399]
[1747552822971,18.29325543,2504.3,2503.8,0.60194399]
[1747552822972,3.99339889,2504.2,2503.8,0.60194399]
[1747552823171,7.513,2504.1,2503.8,0.37910869]
[1747552824009,7.513,2504.0,2503.8,0.37910869]
[1747552825614,7.513,2504.0,2503.9,0.37910869]
[1747552826415,7.513,2504.0,2503.9,0.60223403]
[1747552826712,11.50661022,2504.0,2503.9,0.60223403]
[1747552827822,7.513,2504.0,2503.9,0.60223403]
[1747552830280,7.513,2504.1,2504.0,3.99356689]
[1747552830698,7.513,2504.1,2504.0,4.21669223]
[1747552830898,7.513,2504.1,2504.0,0.60223403]
[1747552833319,7.513,2504.1,2504.0,4.59584425]
[1747552834084,7.513,2504.1,2504.0,5.35354425]
[1747552834284,7.513,2504.1,2504.0,6.39473497]
[1747552835615,7.513,2504.1,2504.0,6.87191333]
[1747552840502,7.512,2504.7,2504.2,3.99329127]
[1747552840700,7.512,2504.7,2504.4,3.99288583]
[1747552840896,7.512,2504.7,2504.5,3.99278176]
[1747552841301,13.7175,2504.9,2504.6,3.99262982]
[1747552841526,7.511,2504.7,2504.6,3.99262982]
[1747552841937,7.511,2504.7,2504.6,4.90951912]
[1747552842148,8.01709179,2505.4,2504.9,3.99217533]
[1747552842459,3.9907555,2505.8,2505.3,3.99145288]
[1747552842744,3.99095279,2505.7,2505.0,3.99199139]
[1747552842900,3.99095279,2505.7,2505.2,3.99168442]
[1747552842901,0.7615,2505.7,2505.2,3.99168442]
[1747552843103,4.75248828,2505.7,2505.1,0.47961914]
[1747552843305,3.99045973,2506.0,2505.3,0.7786]
[1747552843615,3.99059547,2505.9,2505.4,3.99126717]
[1747552843821,11.50154513,2506.0,2505.5,3.99119488]
[1747552844137,7.511,2506.0,2505.5,3.99119488]